fUST/lending_fUST_20250929
["ID","MTS","AMOUNT","RATE_DAILY","PERIOD"]
[388335972,1759103449844,-480.0,0.00027834,7]
[388335973,1759103449853,-448.46244551,0.00027834,7]
[388335974,1759103449863,-828.94,0.00027834,7]
[388335975,1759103449872,-3618.93,0.00027834,7]
[388335976,1759103449881,-867.4,0.00027834,7]
[388335977,1759103449895,-11886.27657632,0.00027845,2]
[388335978,1759103449904,-334.48428195,0.00027873,2]
[388335979,1759103449913,-2095.05,0.00027887,2]
[388335980,1759103449922,-2095.05,0.00027887,2]
[388335981,1759103449932,-2095.05,0.00027887,2]
[388335982,1759103449942,-2095.05,0.00027887,2]
[388335983,1759103449951,-2095.05,0.00027887,2]
[388335984,1759103449960,-2095.05,0.00027888,2]
[388335985,1759103449971,-2095.05,0.00027888,2]
[388335986,1759103449981,-2095.05,0.00027888,2]
[388335987,1759103449990,-2095.05,0.00027896,2]
[388335988,1759103449999,-2095.05,0.00027896,2]
[388335989,1759103450008,-480.0,0.00027897,7]
[388335990,1759103450017,-480.0,0.00027897,7]
[388335991,1759103450025,-712.83,0.00027897,7]
[388335992,1759103450034,-480.0,0.00027897,7]
[388335993,1759103450043,-480.0,0.00027897,7]
[388335994,1759103450051,-907.14,0.00027897,7]
[388335995,1759103450061,-480.0,0.00027897,7]
[388335996,1759103450070,-755.48,0.00027897,7]
[388335997,1759103450079,-480.0,0.00027897,7]
[388335998,1759103450088,-480.0,0.00027897,7]
[388335999,1759103450097,-480.0,0.00027897,7]
[388336000,1759103450106,-480.0,0.00027897,7]
[388336001,1759103450115,-480.0,0.00027897,7]
[388336002,1759103450124,-735.51,0.00027897,7]
[388336003,1759103450133,-480.0,0.00027897,7]
[388336004,1759103450143,-480.0,0.00027897,7]
[388336005,1759103450151,-769.41,0.00027897,7]
[388336006,1759103450160,-480.0,0.00027897,7]
[388336007,1759103450168,-480.0,0.00027897,7]
[388336008,1759103450178,-480.0,0.00027897,7]
[388336009,1759103450187,-480.0,0.00027897,7]
[388336010,1759103450196,-513.09821905,0.00027897,7]
[388336011,1759103450204,-1000.0,0.00027897,7]
[388336012,1759103450213,-487.440217,0.00027897,7]
[388336013,1759103450222,-480.0,0.00027897,7]
[388336014,1759103450231,-480.0,0.00027897,7]
[388336015,1759103450239,-480.0,0.00027897,7]
[388336016,1759103450248,-480.0,0.00027897,7]
[388336017,1759103450257,-480.0,0.00027897,7]
[388336018,1759103450267,-480.0,0.00027897,7]
[388336019,1759103450275,-965.45,0.00027897,7]
[388336020,1759103450285,-480.0,0.00027897,7]
[388336021,1759103450294,-480.0,0.00027897,7]
[388336022,1759103450303,-480.0,0.00027897,7]
[388336023,1759103450313,-480.0,0.00027897,7]
[388336024,1759103450321,-480.0,0.00027897,7]
[388336025,1759103450330,-480.0,0.00027897,7]
[388336026,1759103450339,-480.0,0.00027897,7]
[388336027,1759103450348,-843.18,0.00027897,7]
[388336028,1759103450357,-480.0,0.00027897,7]
[388336029,1759103450366,-722.19,0.00027897,7]
[388336030,1759103450375,-596.31,0.00027897,7]
[388336031,1759103450384,-480.0,0.00027897,7]
[388336032,1759103450393,-480.0,0.00027897,7]
[388336033,1759103450402,-605.36,0.00027897,7]
[388336034,1759103450411,-484.16,0.00027897,7]
[388336035,1759103450420,-480.0,0.00027897,7]
[388336036,1759103450429,-480.0,0.00027897,7]
[388336037,1759103450439,-480.0,0.00027897,7]
[388336038,1759103450449,-480.0,0.00027897,7]
[388336039,1759103450458,-480.0,0.00027897,7]
[388336040,1759103450467,-859.15,0.00027897,7]
[388336041,1759103450476,-480.0,0.00027897,7]
[388336042,1759103450485,-480.0,0.00027897,7]
[388336043,1759103450494,-480.0,0.00027897,7]
[388336044,1759103450503,-639.15,0.00027897,7]
[388336045,1759103450512,-480.0,0.00027897,7]
[388336046,1759103450522,-835.0,0.00027897,7]
[388336047,1759103450531,-681.45,0.00027897,7]
[388336048,1759103450540,-480.0,0.00027897,7]
[388336049,1759103450549,-480.0,0.00027897,7]
[388336050,1759103450558,-480.0,0.00027897,7]
[388336051,1759103450568,-480.0,0.00027897,7]
[388336052,1759103450577,-822.08,0.00027897,7]
[388336053,1759103450586,-480.0,0.00027897,7]
[388336054,1759103450595,-480.0,0.00027897,7]
[388336055,1759103450605,-630.75,0.00027897,7]
[388336056,1759103450614,-741.73,0.00027897,7]
[388336057,1759103450623,-480.0,0.00027897,7]
[388336058,1759103450632,-500.53,0.00027897,7]
[388336059,1759103450642,-480.0,0.00027897,7]
[388336060,1759103450651,-860.95,0.00027897,7]
[388336061,1759103450660,-480.0,0.00027897,7]
[388336062,1759103450669,-2095.05,0.00027898,2]
[388336063,1759103450678,-2095.05,0.00027898,2]
[388336064,1759103450688,-2095.05,0.00027898,2]
[388336065,1759103450699,-2276.74183677,0.00027924,2]
[388336066,1759103450709,-263.64841239,0.00027945,7]
[388336067,1759103450718,-641.72,0.00027945,7]
[388336068,1759103450727,-788.32,0.00027945,7]
[388336069,1759103450736,-480.0,0.00027945,7]
[388336070,1759103450745,-480.0,0.00027945,7]
[388336071,1759103450754,-480.0,0.00027945,7]
[388336072,1759103450763,-497.05,0.00027945,7]
[388336073,1759103450772,-480.0,0.00027945,7]
[388336074,1759103450781,-480.0,0.00027945,7]
[388336075,1759103450790,-480.0,0.00027945,7]
[388336076,1759103450799,-822.62,0.00027945,7]
[388336077,1759103450810,-480.0,0.00027945,7]
[388336078,1759103450964,-480.0,0.00027945,7]
[388336079,1759103450974,-422.13035128,0.00027945,7]
[388336080,1759103450983,-480.0,0.00027945,7]
[388336081,1759103450992,-480.0,0.00027945,7]
[388336082,1759103451001,-680.72,0.00027945,7]
[388336083,1759103451010,-500.0,0.00027945,7]
[388336084,1759103451018,-924.85,0.00027945,7]
[388336085,1759103451027,-565.21,0.00027945,7]
[388336086,1759103451036,-480.0,0.00027945,7]
[388336087,1759103451045,-535.39,0.00027945,7]
[388336088,1759103451054,-499.82,0.00027945,7]
[388336089,1759103451064,-480.0,0.00027945,7]
[388336090,1759103451073,-480.0,0.00027945,7]
[388336091,1759103451081,-670.03,0.00027945,7]
[388336092,1759103451091,-480.0,0.00027945,7]
[388336093,1759103451099,-480.0,0.00027945,7]
[388336094,1759103451109,-480.0,0.00027945,7]
[388336095,1759103451118,-480.0,0.00027945,7]
[388336096,1759103451127,-516.11,0.00027945,7]
[388336098,1759103451136,-480.0,0.00027945,7]
[388336100,1759103451145,-480.0,0.00027945,7]
[388336101,1759103451155,-480.0,0.00027945,7]
[388336102,1759103451163,-480.0,0.00027945,7]
[388336103,1759103451172,-480.0,0.00027945,7]
[388336104,1759103451181,-480.0,0.00027945,7]
[388336105,1759103451190,-626.56,0.00027945,7]
[388336106,1759103451199,-313.22840279,0.00027945,7]
[388336107,1759103451208,-480.0,0.00027945,7]
[388336108,1759103451217,-515.84,0.00027945,7]
[388336109,1759103451226,-853.44,0.00027945,7]
[388336110,1759103451235,-616.75,0.00027945,7]
[388336111,1759103451244,-591.3,0.00027945,7]
[388336112,1759103451253,-480.0,0.00027945,7]
[388336113,1759103451262,-480.0,0.00027945,7]
[388336114,1759103451271,-480.0,0.00027945,7]
[388336115,1759103451280,-592.77,0.00027945,7]
[388336116,1759103451290,-480.0,0.00027945,7]
[388336117,1759103451299,-480.0,0.00027945,7]
[388336118,1759103451308,-513.59,0.00027945,7]
[388336119,1759103451317,-605.55,0.00027945,7]
[388336120,1759103451326,-480.0,0.00027945,7]
[388336121,1759103451335,-580.32,0.00027945,7]
[388336122,1759103451344,-1100.81,0.00027945,7]
[388336123,1759103451353,-662.87,0.00027945,7]
[388336124,1759103451362,-480.0,0.00027945,7]
[388336125,1759103451371,-480.0,0.00027945,7]
[388336126,1759103451380,-839.69,0.00027945,7]
[388336127,1759103451389,-480.0,0.00027945,7]
[388336128,1759103451398,-480.0,0.00027945,7]
[388336129,1759103451407,-480.0,0.00027945,7]
[388336130,1759103451417,-480.0,0.00027945,7]
[388336131,1759103451427,-480.0,0.00027945,7]
[388336132,1759103451436,-480.0,0.00027945,7]
[388336133,1759103451446,-480.0,0.00027945,7]
[388336134,1759103451455,-480.0,0.00027945,7]
[388336135,1759103451464,-550.92,0.00027945,7]
[388336136,1759103451473,-873.96,0.00027945,7]
[388336137,1759103451483,-480.0,0.00027945,7]
[388336138,1759103451493,-480.0,0.00027945,7]
[388336139,1759103451503,-480.0,0.00027945,7]
[388336140,1759103451512,-480.0,0.00027945,7]
[388336141,1759103451521,-480.0,0.00027945,7]
[388336142,1759103451531,-777.05,0.00027945,7]
[388336143,1759103451540,-784.66,0.00027945,7]
[388336144,1759103451549,-735.1,0.00027945,7]
[388336145,1759103451558,-249.58675994,0.00027945,7]
[388336146,1759103451568,-993.78,0.00027945,7]
[388336147,1759103451577,-480.0,0.00027945,7]
[388336148,1759103451587,-480.0,0.00027945,7]
[388336149,1759103451596,-1057.12,0.00027945,7]
[388336150,1759103451606,-589.58,0.00027945,7]
[388336151,1759103451615,-480.0,0.00027945,7]
[388336152,1759103451624,-1130.79,0.00027945,7]
[388336153,1759103451633,-480.0,0.00027945,7]
[388336154,1759103451642,-1262.46,0.00027945,7]
[388336155,1759103451651,-1564.71,0.00027945,7]
[388336156,1759103451661,-480.0,0.00027945,7]
[388336157,1759103451670,-480.0,0.00027945,7]
[388336158,1759103451680,-1337.31,0.00027945,7]
[388336159,1759103451689,-480.0,0.00027945,7]
[388336160,1759103451699,-1086.26,0.00027945,7]
[388336161,1759103451708,-589.16,0.00027945,7]
[388336162,1759103451717,-480.0,0.00027945,7]
[388336163,1759103451727,-480.0,0.00027945,7]
[388336164,1759103451736,-514.97,0.00027945,7]
[388336165,1759103451746,-480.0,0.00027945,7]
[388336166,1759103451754,-771.3,0.00027945,7]
[388336167,1759103451763,-2949.58,0.00027945,7]
[388336168,1759103451772,-480.0,0.00027945,7]
[388336169,1759103451782,-480.0,0.00027945,7]
[388336170,1759103451791,-1918.75,0.00027945,7]
[388336171,1759103451799,-480.0,0.00027945,7]
[388336172,1759103451808,-480.0,0.00027945,7]
[388336173,1759103451817,-480.0,0.00027945,7]
[388336174,1759103451826,-480.0,0.00027945,7]
[388336175,1759103451835,-1564.8,0.00027945,7]
[388336176,1759103451844,-480.0,0.00027945,7]
[388336177,1759103451853,-480.0,0.00027945,7]
[388336178,1759103451863,-480.0,0.00027945,7]
[388336179,1759103451872,-480.0,0.00027945,7]
[388336180,1759103451881,-540.81,0.00027945,7]
[388336181,1759103451891,-480.0,0.00027945,7]
[388336182,1759103451903,-518.24,0.00027945,7]
[388336183,1759103451912,-500.0,0.00027945,7]
[388336184,1759103451921,-845.77,0.00027945,7]
[388336185,1759103451930,-808.67,0.00027945,7]
[388336186,1759103451941,-504.07623178,0.00027945,7]
[388336187,1759103451950,-767.94,0.00027945,7]
[388336188,1759103451959,-480.0,0.00027945,7]
[388336189,1759103451971,-695.12,0.00027945,7]
[388336190,1759103451980,-480.0,0.00027945,7]
[388336191,1759103451989,-531.24,0.00027945,7]
[388336192,1759103451997,-1385.84,0.00027945,7]
[388336193,1759103452006,-901.97,0.00027945,7]
[388336194,1759103452015,-480.0,0.00027945,7]
[388336195,1759103452025,-480.0,0.00027945,7]
[388336196,1759103452034,-3317.91,0.00027945,7]
[388336197,1759103452044,-480.0,0.00027945,7]
[388336198,1759103452053,-785.05,0.00027945,7]
[388336199,1759103452062,-1474.69,0.00027945,7]
[388336200,1759103452071,-480.0,0.00027945,7]
[388336201,1759103452080,-1329.27,0.00027945,7]
[388336202,1759103452089,-1430.69,0.00027945,7]
[388336203,1759103452098,-480.0,0.00027945,7]
[388336204,1759103452106,-934.42,0.00027945,7]
[388336205,1759103452115,-932.68,0.00027945,7]
[388336206,1759103452124,-689.5,0.00027945,7]
[388336207,1759103452133,-571.2,0.00027945,7]
[388336208,1759103452143,-480.0,0.00027945,7]
[388336209,1759103452152,-844.72,0.00027945,7]
[388336210,1759103452161,-480.0,0.00027945,7]
[388336211,1759103452170,-695.38,0.00027945,7]
[388336212,1759103452179,-480.0,0.00027945,7]
[388336213,1759103452189,-480.0,0.00027945,7]
[388336214,1759103452199,-480.0,0.00027945,7]
[388336215,1759103452208,-480.0,0.00027945,7]
[388336216,1759103452217,-1055.79,0.00027945,7]
[388336217,1759103452226,-2117.59,0.00027945,7]
[388336218,1759103452235,-231.64109711,0.00027945,7]
[388336219,1759103452245,-480.0,0.00027945,7]
[388336220,1759103452254,-480.0,0.00027945,7]
[388336221,1759103452264,-808.3,0.00027945,7]
[388336222,1759103452272,-1136.38,0.00027945,7]
[388336223,1759103452282,-480.0,0.00027945,7]
[388336224,1759103452291,-1374.0,0.00027945,7]
[388336225,1759103452300,-651.29,0.00027945,7]
[388336226,1759103452309,-480.0,0.00027945,7]
[388336227,1759103452319,-1146.02,0.00027945,7]
[388336228,1759103452328,-480.0,0.00027945,7]
[388336229,1759103452337,-480.0,0.00027945,7]
[388336230,1759103452346,-480.0,0.00027945,7]
[388336231,1759103452355,-726.35,0.00027945,7]
[388336232,1759103452364,-812.09,0.00027945,7]
[388336233,1759103452373,-2168.38,0.00027945,7]
[388336234,1759103452383,-480.0,0.00027945,7]
[388336235,1759103452392,-2804.71,0.00027945,7]
[388336236,1759103452400,-1354.28,0.00027945,7]
[388336237,1759103452410,-598.32,0.00027945,7]
[388336238,1759103452419,-579.15,0.00027945,7]
[388336239,1759103452428,-480.0,0.00027945,7]
[388336240,1759103452437,-480.0,0.00027945,7]
[388336241,1759103452446,-2231.62,0.00027945,7]
[388336242,1759103452456,-814.75,0.00027945,7]
[388336243,1759103452465,-973.37,0.00027945,7]
[388336244,1759103452474,-480.0,0.00027945,7]
[388336245,1759103452483,-480.0,0.00027945,7]
[388336246,1759103452493,-728.76,0.00027945,7]
[388336247,1759103452502,-516.5,0.00027945,7]
[388336248,1759103452511,-780.32,0.00027945,7]
[388336249,1759103452520,-602.47,0.00027945,7]
[388336250,1759103452529,-480.0,0.00027945,7]
[388336251,1759103452539,-512.45,0.00027945,7]
[388336252,1759103452548,-1037.42,0.00027945,7]
[388336253,1759103452557,-1880.3,0.00027945,7]
[388336254,1759103452566,-1247.97,0.00027945,7]
[388336255,1759103452575,-849.93,0.00027945,7]
[388336256,1759103452584,-898.56,0.00027945,7]
[388336257,1759103452593,-480.0,0.00027945,7]
[388336258,1759103452602,-480.0,0.00027945,7]
[388336259,1759103452612,-480.0,0.00027945,7]
[388336260,1759103452620,-480.0,0.00027945,7]
[388336261,1759103452630,-678.02,0.00027945,7]
[388336262,1759103452639,-1778.28,0.00027945,7]
[388336263,1759103452648,-2379.83,0.00027945,7]
[388336264,1759103452657,-5954.8,0.00027945,3]
[388336265,1759103452667,-794.46,0.00027945,7]
[388336266,1759103452676,-480.0,0.00027945,7]
[388336267,1759103452685,-480.0,0.00027945,7]
[388336268,1759103452693,-1055.28,0.00027945,7]
[388336269,1759103452703,-782.33,0.00027945,7]
[388336270,1759103452711,-1175.56,0.00027945,7]
[388336271,1759103452721,-480.0,0.00027945,7]
[388336272,1759103452729,-798.06,0.00027945,7]
[388336273,1759103452738,-480.0,0.00027945,7]
[388336274,1759103452747,-480.0,0.00027945,7]
[388336275,1759103452755,-561.5,0.00027945,7]
[388336276,1759103452764,-567.64,0.00027945,7]
[388336277,1759103452774,-2153.55,0.00027945,7]
[388336278,1759103452783,-529.57,0.00027945,7]
[388336279,1759103452792,-786.13,0.00027945,7]
[388336280,1759103452800,-480.0,0.00027945,7]
[388336281,1759103452809,-480.0,0.00027945,7]
[388336282,1759103452818,-1029.38,0.00027945,7]
[388336283,1759103452827,-2515.29,0.00027945,7]
[388336284,1759103452835,-3871.47,0.00027945,7]
[388336285,1759103452845,-3379.94,0.00027945,7]
[388336286,1759103452854,-480.0,0.00027945,7]
[388336287,1759103452864,-914.13,0.00027945,7]
[388336288,1759103452873,-480.0,0.00027945,7]
[388336289,1759103452881,-480.0,0.00027945,7]
[388336290,1759103452893,-480.0,0.00027945,7]
[388336291,1759103452902,-480.0,0.00027945,7]
[388336292,1759103452911,-579.59,0.00027945,7]
[388336293,1759103452920,-1006.61,0.00027945,7]
[388336294,1759103452929,-220.79,0.00027945,7]
[388336295,1759103452937,-856.16,0.00027945,7]
[388336296,1759103452947,-480.0,0.00027945,7]
[388336297,1759103452956,-4097.81,0.00027945,7]
[388336298,1759103452965,-856.58,0.00027945,7]
[388336299,1759103452974,-480.0,0.00027945,7]
[388336300,1759103452983,-633.61,0.00027945,7]
[388336301,1759103452993,-480.0,0.00027945,7]
[388336302,1759103453002,-520.78,0.00027945,7]
[388336303,1759103453011,-679.56,0.00027945,7]
[388336304,1759103453020,-1848.01,0.00027945,7]
[388336305,1759103453029,-511.0,0.00027945,7]
[388336306,1759103453038,-809.94,0.00027945,7]
[388336307,1759103453047,-480.0,0.00027945,7]
[388336308,1759103453061,-17932.03,0.00027945,7]
[388336309,1759103453070,-1780.76,0.00027945,7]
[388336310,1759103453079,-480.0,0.00027945,7]
[388336311,1759103453088,-480.0,0.00027945,7]
[388336312,1759103453098,-1480.41,0.00027945,7]
[388336313,1759103453107,-480.0,0.00027945,7]
[388336314,1759103453116,-480.0,0.00027945,7]
[388336315,1759103453126,-480.0,0.00027945,7]
[388336316,1759103453135,-469.58475786,0.00027945,7]
[388336317,1759103453144,-480.0,0.00027945,7]
[388336318,1759103453153,-480.0,0.00027945,7]
[388336319,1759103453163,-1205.36,0.00027945,7]
[388336320,1759103453173,-931.56,0.00027945,7]
[388336321,1759103453182,-480.0,0.00027945,7]
[388336322,1759103453194,-504.55,0.00027945,7]
[388336323,1759103453203,-744.16,0.00027945,7]
[388336324,1759103453212,-480.0,0.00027945,7]
[388336325,1759103453221,-670.0,0.00027945,7]
[388336326,1759103453230,-480.0,0.00027945,7]
[388336327,1759103453239,-480.0,0.00027945,7]
[388336328,1759103453248,-480.0,0.00027945,7]
[388336329,1759103453257,-891.42,0.00027945,7]
[388336330,1759103453267,-822.23,0.00027945,7]
[388336331,1759103453276,-1145.19,0.00027945,7]
[388336332,1759103453286,-480.0,0.00027945,7]
[388336333,1759103453295,-480.0,0.00027945,7]
[388336334,1759103453304,-913.52,0.00027945,7]
[388336335,1759103453313,-732.15,0.00027945,7]
[388336336,1759103453323,-480.0,0.00027945,7]
[388336337,1759103453331,-710.86,0.00027945,7]
[388336338,1759103453340,-5066.22,0.00027945,7]
[388336339,1759103453349,-8442.79,0.00027945,7]
[388336340,1759103453358,-860.51,0.00027945,7]
[388336341,1759103453367,-1010.12,0.00027945,7]
[388336342,1759103453376,-487.25,0.00027945,7]
[388336343,1759103453385,-1363.68,0.00027945,7]
[388336344,1759103453394,-1631.21,0.00027945,7]
[388336345,1759103453403,-1604.48,0.00027945,7]
[388336346,1759103453412,-745.45,0.00027945,7]
[388336347,1759103453421,-480.0,0.00027945,7]
[388336348,1759103453430,-480.0,0.00027945,7]
[388336349,1759103453440,-1420.83,0.00027945,7]
[388336350,1759103453449,-4153.65,0.00027945,7]
[388336351,1759103453458,-1332.06,0.00027945,7]
[388336352,1759103453468,-1051.49,0.00027945,7]
[388336353,1759103453477,-480.0,0.00027945,7]
[388336354,1759103453486,-480.0,0.00027945,7]
[388336355,1759103453496,-924.01,0.00027945,7]
[388336356,1759103453505,-480.0,0.00027945,7]
[388336357,1759103453514,-480.0,0.00027945,7]
[388336358,1759103453523,-480.0,0.00027945,7]
[388336359,1759103453532,-1972.12,0.00027945,7]
[388336360,1759103453542,-480.0,0.00027945,7]
[388336361,1759103453552,-480.0,0.00027945,7]
[388336362,1759103453562,-2285.6,0.00027945,7]
[388336363,1759103453571,-480.0,0.00027945,7]
[388336364,1759103453580,-586.8,0.00027945,7]
[388336365,1759103453590,-480.0,0.00027945,7]
[388336366,1759103453599,-480.0,0.00027945,7]
[388336367,1759103453608,-4195.97,0.00027945,7]
[388336368,1759103453618,-480.0,0.00027945,7]
[388336369,1759103453627,-2449.48,0.00027945,7]
[388336370,1759103453637,-480.0,0.00027945,7]
[388336371,1759103453646,-480.0,0.00027945,7]
[388336372,1759103453655,-480.0,0.00027945,7]
[388336373,1759103453665,-778.87,0.00027945,7]
[388336374,1759103453674,-4478.81,0.00027945,7]
[388336375,1759103453830,-910.42,0.00027945,7]
[388336376,1759103453840,-527.49,0.00027945,7]
[388336377,1759103453849,-591.15,0.00027945,7]
[388336378,1759103453858,-480.0,0.00027945,7]
[388336379,1759103453867,-917.77,0.00027945,7]
[388336380,1759103453877,-480.0,0.00027945,7]
[388336381,1759103453886,-480.0,0.00027945,7]
[388336382,1759103453899,-1171.37,0.00027945,7]
[388336383,1759103453908,-781.16,0.00027945,7]
[388336384,1759103453920,-480.0,0.00027945,7]
[388336385,1759103453932,-2238.12,0.00027945,7]
[388336386,1759103453944,-751.04,0.00027945,7]
[388336387,1759103453956,-1674.84,0.00027945,7]
[388336388,1759103453968,-907.39,0.00027945,7]
[388336389,1759103453980,-480.0,0.00027945,7]
[388336390,1759103453992,-804.33,0.00027945,7]
[388336391,1759103454004,-515.97,0.00027945,7]
[388336392,1759103454015,-480.0,0.00027945,7]
[388336393,1759103454025,-550.6,0.00027945,7]
[388336394,1759103454034,-1087.13,0.00027945,7]
[388336395,1759103454043,-489.85471635,0.00027945,7]
[388336396,1759103454054,-480.0,0.00027945,7]
[388336397,1759103454065,-1024.34,0.00027945,7]
[388336398,1759103454075,-2128.47,0.00027945,7]
[388336399,1759103454083,-4005.13,0.00027945,7]
[388336400,1759103454092,-480.0,0.00027945,7]
[388336401,1759103454103,-480.0,0.00027945,7]
[388336402,1759103454113,-814.41,0.00027945,7]
[388336403,1759103454122,-2378.25,0.00027945,7]
[388336404,1759103454131,-883.22,0.00027945,7]
[388336405,1759103454138,-946.93,0.00027945,7]
[388336406,1759103454145,-480.0,0.00027945,7]
[388336407,1759103454151,-480.0,0.00027945,7]
[388336408,1759103454158,-480.0,0.00027945,7]
[388336409,1759103454167,-896.6,0.00027945,7]
[388336411,1759103454175,-621.58,0.00027945,7]
[388336413,1759103454184,-960.54,0.00027945,7]
[388336415,1759103454195,-1440.77,0.00027945,7]
[388336417,1759103454204,-480.0,0.00027945,7]
[388336419,1759103454214,-1114.7,0.00027945,7]
[388336421,1759103454224,-837.34,0.00027945,7]
[388336423,1759103454234,-1118.59,0.00027945,7]
[388336425,1759103454243,-480.0,0.00027945,7]
[388336427,1759103454252,-480.0,0.00027945,7]
[388336428,1759103454262,-2042.54,0.00027945,7]
[388336429,1759103454271,-480.0,0.00027945,7]
[388336430,1759103454281,-630.92,0.00027945,7]
[388336431,1759103454290,-3723.77,0.00027945,7]
[388336432,1759103454300,-480.0,0.00027945,7]
[388336434,1759103454309,-480.0,0.00027945,7]
[388336435,1759103454318,-1253.14,0.00027945,7]
[388336437,1759103454328,-993.07,0.00027945,7]
[388336438,1759103454336,-480.0,0.00027945,7]
[388336439,1759103454346,-480.0,0.00027945,7]
[388336440,1759103454355,-490.68,0.00027945,7]
[388336441,1759103454363,-480.0,0.00027945,7]
[388336442,1759103454372,-544.66,0.00027945,7]
[388336444,1759103454382,-480.0,0.00027945,7]
[388336446,1759103454391,-1643.84,0.00027945,7]
[388336447,1759103454401,-480.0,0.00027945,7]
[388336448,1759103454410,-749.39,0.00027945,7]
[388336449,1759103454420,-7552.47,0.00027945,7]
[388336450,1759103454429,-480.0,0.00027945,7]
[388336451,1759103454438,-480.0,0.00027945,7]
[388336452,1759103454449,-5346.94,0.00027945,7]
[388336453,1759103454459,-480.0,0.00027945,7]
[388336454,1759103454468,-480.0,0.00027945,7]
[388336455,1759103454477,-637.13,0.00027945,7]
[388336456,1759103454486,-797.93,0.00027945,7]
[388336457,1759103454495,-480.0,0.00027945,7]
[388336458,1759103454504,-480.0,0.00027945,7]
[388336459,1759103454513,-480.0,0.00027945,7]
[388336460,1759103454522,-480.0,0.00027945,7]
[388336461,1759103454532,-480.0,0.00027945,7]
[388336463,1759103454541,-160.0,0.00027976,2]
[388336464,1759103454550,-189.35579204,0.00028,10]
[388336465,1759103454559,-420.0,0.00028088,2]
[388336466,1759103454568,-313.0,0.00028088,2]
[388336467,1759103454577,-480.0,0.00028105,7]
[388336468,1759103454586,-785.37,0.00028105,7]
[388336469,1759103454595,-1605.3,0.00028105,7]
[388336470,1759103454610,-480.0,0.00028105,7]
[388336471,1759103454619,-3534.31,0.00028105,7]
[388336472,1759103454629,-1260.8,0.00028105,7]
[388336473,1759103454638,-541.1117151,0.00028105,7]
[388336474,1759103454647,-1680.0,0.00028107,2]
[388336475,1759103454656,-480.0,0.00028108,7]
[388336476,1759103454665,-480.0,0.00028108,7]
[388336477,1759103454675,-480.0,0.00028108,7]
[388336478,1759103454684,-480.0,0.00028108,7]
[388336479,1759103454693,-480.0,0.00028108,7]
[388336480,1759103454702,-480.0,0.00028108,7]
[388336481,1759103454710,-480.0,0.00028108,7]
[388336482,1759103454719,-481.87462791,0.00028108,7]
[388336483,1759103454728,-507.3703427,0.00028108,7]
[388336484,1759103454738,-480.0,0.00028108,7]
[388336485,1759103454747,-480.0,0.00028108,7]
[388336486,1759103454755,-497.57374613,0.00028108,7]
[388336487,1759103454764,-480.0,0.00028108,7]